bitfinex-derivatives/quotes_SOLF0:USTF0_20241029
["timestamp","ask_amount","ask_price","bid_price","bid_amount"]
[1730184634418,2.7763,180.23,180.19,5.96800959]
[1730184634624,4.12,180.24,180.21,5.96800959]
[1730184635017,2.7764,180.22,180.21,5.96800959]
[1730184635519,4.12,180.24,180.21,8.74450959]
[1730184635710,4.12,180.24,180.15,3.849]
[1730184635711,4.12,180.24,180.23,5.96800959]
[1730184635909,2.7759,180.26,180.23,5.96800959]
[1730184636108,6.8959,180.26,180.23,5.96800959]
[1730184636717,2.776,180.25,180.23,5.96800959]
[1730184638412,4.12,180.26,180.15,3.849]
[1730184638613,2.7762,180.24,180.21,5.96800959]
[1730184639108,6.8959,180.26,180.23,5.96800959]
[1730184639907,5.96800959,180.29,180.24,5.96800959]
[1730184640114,4.08,180.28,180.26,5.96800959]
[1730184641122,6.8556,180.28,180.26,5.96800959]
[1730184641617,4.08,180.28,180.26,5.96800959]
[1730184642314,9.79240959,180.32,180.26,5.96800959]
[1730184642515,2.7752,180.3,180.27,5.96800959]
[1730184642915,4.08,180.31,180.27,5.96800959]
[1730184643115,2.7754,180.29,180.25,8.74390959]
[1730184644513,6.8554,180.29,180.25,8.74390959]
[1730184646218,2.7758,180.26,180.22,2.7764]
[1730184646423,2.7758,180.26,180.24,5.96800959]
[1730184646929,2.776,180.25,180.22,2.7764]
[1730184647127,2.776,180.25,180.23,5.96800959]
[1730184647630,2.7758,180.26,180.23,5.96800959]
[1730184650229,4.08,180.29,180.23,5.96800959]
[1730184650433,4.08,180.29,180.23,8.74420959]
[1730184650624,2.7756,180.28,180.23,8.74420959]
[1730184650827,4.08,180.29,180.18,4.08]
[1730184651025,4.08,180.29,180.23,5.96800959]
[1730184652431,2.7761,180.25,180.23,5.96800959]
[1730184652935,2.7758,180.27,180.23,8.74420959]
[1730184653730,2.7758,180.27,180.24,5.96800959]
[1730184655530,3.8244,180.32,180.26,5.96800959]
[1730184655831,4.08,180.31,180.26,5.96800959]
[1730184656935,2.7753,180.3,180.26,8.74370959]
[1730184659334,2.7754,180.29,180.26,5.96800959]
[1730184661032,2.7756,180.28,180.25,5.96800959]
[1730184661333,10.04800959,180.31,180.25,5.96800959]
[1730184661334,5.96800959,180.29,180.25,5.96800959]
[1730184661836,2.7755,180.28,180.25,5.96800959]
[1730184662937,2.7755,180.28,180.25,8.74390959]
[1730184663133,2.7755,180.28,180.25,5.96800959]
[1730184665929,2.7757,180.27,180.25,5.96800959]
[1730184667632,2.7754,180.29,180.25,8.74390959]
[1730184667835,2.7754,180.29,180.19,4.08]
[1730184667836,4.08,180.31,180.26,5.96800959]
[1730184668236,2.7752,180.3,180.28,5.96800959]
[1730184668435,4.08,180.31,180.28,5.96800959]
[1730184669145,2.7752,180.3,180.28,5.96800959]
[1730184671142,6.8551,180.31,180.28,5.96800959]
[1730184672035,2.775,180.32,180.29,5.96800959]
[1730184672349,4.0,180.31,180.3,5.96800959]
[1730184672740,2.775,180.32,180.3,5.96800959]
[1730184674441,4.0,180.33,180.3,5.96800959]
[1730184674442,2.775,180.31,180.3,5.96800959]
[1730184678042,2.775,180.31,180.29,5.96800959]
[1730184678444,2.775,180.32,180.29,5.96800959]
[1730184680346,2.775,180.31,180.28,8.74340959]
[1730184689249,4.0,180.32,180.28,5.96800959]
[1730184689554,2.775,180.31,180.28,8.74350959]
[1730184689749,4.0,180.32,180.29,5.96800959]
[1730184689950,4.0,180.34,180.32,2.7747]
[1730184691652,5.96800959,180.33,180.29,2.7752]
[1730184693152,4.0,180.34,180.29,2.7752]
[1730184693461,9.96800959,180.34,180.29,2.7752]
[1730184694252,2.7748,180.33,180.29,2.7752]
[1730184694554,2.7748,180.33,180.29,8.74320959]
[1730184703255,2.7748,180.33,180.29,5.96800959]
[1730184703456,4.0,180.34,180.3,2.7751]
[1730184704361,5.96800959,180.37,180.32,2.7748]
[1730184704556,4.0,180.36,180.32,2.7748]
[1730184704753,4.0,180.36,180.31,5.96800959]
[1730184704948,2.7745,180.35,180.31,8.74300959]
[1730184705150,4.0,180.36,180.31,5.96800959]
[1730184705551,2.7745,180.35,180.31,5.96800959]
[1730184705861,9.96800959,180.36,180.31,5.96800959]
[1730184707050,5.96800959,180.34,180.24,7.8701]
[1730184707246,5.96800959,180.34,180.28,5.96800959]
[1730184707659,5.96800959,180.34,180.28,8.74350959]
[1730184708057,5.96800959,180.34,180.28,2.7755]
[1730184708258,2.7751,180.31,180.27,2.7756]
[1730184709550,8.74330959,180.3,180.26,2.7758]
[1730184712257,2.7753,180.3,180.26,8.74380959]
[1730184716066,2.7754,180.29,180.26,8.74380959]
[1730184716771,2.7752,180.3,180.27,2.7756]
[1730184717168,2.7751,180.31,180.28,2.7754]
[1730184717467,4.0,180.34,180.28,5.96800959]
[1730184718364,2.7748,180.33,180.3,2.7751]
[1730184718762,4.0,180.34,180.3,2.7751]
[1730184719166,2.7748,180.33,180.3,2.7751]
[1730184721376,2.7748,180.33,180.28,5.96800959]
[1730184721572,2.7748,180.33,180.29,2.7753]
[1730184723181,8.74280959,180.33,180.29,2.7753]
[1730184723670,2.775,180.32,180.29,2.7753]
[1730184724772,5.96800959,180.33,180.27,5.96800959]
[1730184724970,8.74320959,180.31,180.27,2.7755]
[1730184725982,2.7752,180.3,180.27,2.7755]
[1730184728477,4.0,180.34,180.27,5.96800959]
[1730184728683,4.0,180.34,180.24,7.8701]
[1730184728684,2.775,180.32,180.29,8.74330959]
[1730184729479,9.96800959,180.34,180.27,5.96800959]
[1730184729674,2.7751,180.31,180.28,2.7755]
[1730184738678,9.96800959,180.34,180.27,5.96800959]
[1730184738882,9.96800959,180.34,180.29,5.96800959]
[1730184739081,4.0,180.34,180.29,5.96800959]
[1730184739278,4.0,180.34,180.31,5.96800959]
[1730184739487,6.7747,180.34,180.31,8.74300959]
[1730184739785,4.0,180.34,180.31,5.96800959]
[1730184741287,2.7747,180.33,180.31,5.96800959]
[1730184741787,2.7747,180.33,180.3,2.7751]
[1730184741994,2.7752,180.31,180.27,2.7756]
[1730184742189,5.96800959,180.31,180.26,5.96800959]
[1730184743294,2.7751,180.31,180.28,2.7754]
[1730184745397,9.96800959,180.34,180.29,5.96800959]
[1730184745596,4.02,180.34,180.3,5.96800959]
[1730184746295,6.7947,180.34,180.3,8.74310959]
[1730184746596,4.02,180.34,180.3,8.74310959]
[1730184747700,2.7747,180.33,180.3,8.74310959]
[1730184753402,6.7946,180.34,180.31,2.775]
[1730184754395,4.02,180.36,180.33,2.7746]
[1730184755307,4.02,180.36,180.34,2.7745]
[1730184758310,6.7941,180.37,180.34,2.7745]
[1730184759519,2.7741,180.37,180.34,2.7745]
[1730184759719,5.2327,180.4,180.37,2.7741]
[1730184759900,6.7537,180.4,180.37,2.7741]
[1730184760106,3.98,180.41,180.37,2.7741]
[1730184760316,3.98,180.41,180.36,5.96800959]
[1730184760317,2.7737,180.4,180.36,5.96800959]
[1730184760606,2.7737,180.4,180.31,3.98]
[1730184760607,3.98,180.41,180.35,5.96800959]
[1730184760908,2.7738,180.4,180.35,5.96800959]
[1730184761103,2.7738,180.4,180.36,2.7742]
[1730184761300,8.74180959,180.4,180.36,2.7742]
[1730184761608,2.7743,180.36,180.33,2.7747]
[1730184761807,5.96800959,180.37,180.31,5.96800959]
[1730184761808,9.94800959,180.37,180.31,5.96800959]
[1730184762001,5.96800959,180.35,180.29,5.96800959]
[1730184762205,8.74250959,180.35,180.29,5.96800959]
[1730184762815,8.74250959,180.35,180.3,2.7751]
[1730184763020,8.74250959,180.35,180.29,5.96800959]
[1730184764317,8.74250959,180.35,180.32,2.7748]
[1730184768415,5.96800959,180.35,180.27,3.98]
[1730184768617,2.7747,180.34,180.3,2.7751]
[1730184769519,2.7747,180.34,180.31,2.775]
[1730184769813,2.7747,180.34,180.27,3.98]
[1730184769814,5.96800959,180.34,180.27,3.98]
[1730184770118,5.96800959,180.34,180.29,2.7752]
[1730184770619,2.7748,180.33,180.3,2.7752]
[1730184774919,8.74300959,180.31,180.28,2.7754]
[1730184775316,5.96800959,180.29,180.21,2.802893]
[1730184775617,5.96800959,180.29,180.17,341.5541]
[1730184775618,5.96800959,180.29,180.23,5.96800959]
[1730184775921,5.96800959,180.28,180.22,5.96800959]
[1730184776319,8.74360959,180.28,180.24,2.776]
[1730184776822,8.74390959,180.26,180.22,2.7763]
[1730184777218,5.96800959,180.25,180.22,2.7763]
[1730184780326,5.96800959,180.25,180.2,80.65179961]
[1730184780530,5.96800959,180.25,180.23,2.7763]
[1730184781324,9.94800959,180.25,180.18,11.14770959]
[1730184781627,9.94800959,180.25,180.18,9.94800959]
[1730184782015,2.7762,180.24,180.2,2.7766]
[1730184782219,2.7762,180.24,180.18,9.94800959]
[1730184783218,2.7762,180.24,180.21,2.7765]
[1730184785430,2.7762,180.24,180.16,3.98]
[1730184785630,2.7762,180.24,180.2,2.7766]
[1730184790036,2.7762,180.24,180.18,5.96800959]
[1730184790230,2.7762,180.24,180.16,3.98]
[1730184790231,5.96800959,180.23,180.21,2.7765]
[1730184792037,2.7762,180.24,180.21,2.7765]
[1730184793529,9.94800959,180.25,180.23,2.7761]
[1730184793530,3.98,180.25,180.23,2.7761]
[1730184793731,5.96800959,180.26,180.23,2.7761]
[1730184795234,8.74380959,180.26,180.23,2.7761]
[1730184800041,3.94,180.27,180.25,2.7758]
[1730184800237,9.90800959,180.27,180.2,5.96800959]
[1730184800740,12.68360959,180.27,180.23,2.7761]
[1730184801045,5.96800959,180.27,180.22,5.96800959]
[1730184801238,9.90800959,180.29,180.25,2.7759]
[1730184801836,12.68340959,180.29,180.25,2.7759]
[1730184802035,9.90800959,180.29,180.25,2.7759]
[1730184803240,2.7755,180.28,180.25,2.7759]
[1730184816761,2.7757,180.27,180.24,2.776]
[1730184817653,2.7755,180.28,180.25,2.7759]
[1730184819053,2.7757,180.27,180.24,2.7761]
[1730184822665,8.74370959,180.27,180.24,2.7761]
[1730184824765,5.96800959,180.27,180.2,3.94]
[1730184825066,2.7758,180.26,180.23,2.7762]
[1730184825455,2.7758,180.26,180.22,5.96800959]
[1730184825663,2.7758,180.26,180.24,2.7761]
[1730184827963,5.96800959,180.28,180.22,5.96800959]
[1730184828168,8.74360959,180.28,180.25,2.7758]
[1730184832569,2.7757,180.27,180.24,2.776]
[1730184833260,2.7757,180.27,180.25,2.7759]
[1730184833669,8.74350959,180.28,180.25,2.7759]
[1730184834772,2.7757,180.27,180.24,2.7761]
[1730184835373,5.96800959,180.28,180.22,5.96800959]
[1730184835569,5.96800959,180.27,180.23,2.7761]
[1730184835870,5.96800959,180.27,180.18,3.7475]
[1730184836066,5.96800959,180.27,180.21,5.96800959]
[1730184837269,2.7759,180.26,180.23,2.7762]
[1730184839874,8.74390959,180.26,180.23,2.7762]
[1730184841378,2.7759,180.26,180.23,2.7762]
[1730184841591,8.74390959,180.26,180.23,2.7762]
[1730184841874,3.7683,180.33,180.23,5.96800959]
[1730184842079,3.94,180.32,180.23,5.96800959]
[1730184842373,5.96800959,180.29,180.23,5.96800959]
[1730184842976,5.96800959,180.29,180.26,2.7757]
[1730184843877,8.74340959,180.29,180.26,2.7757]
[1730184845381,2.7754,180.29,180.26,2.7757]
[1730184845585,2.7752,180.3,180.24,5.96800959]
[1730184845780,8.74320959,180.3,180.24,5.96800959]
[1730184846088,5.96800959,180.3,180.24,5.96800959]
[1730184847584,3.94,180.29,180.24,5.96800959]
[1730184847884,3.94,180.29,180.25,2.7759]
[1730184848179,3.94,180.29,180.24,5.96800959]
[1730184848978,3.94,180.29,180.26,2.7757]
[1730184850377,3.94,180.3,180.28,2.7754]
[1730184851483,5.96800959,180.32,180.28,2.7754]
[1730184851782,3.94,180.31,180.28,2.7754]
[1730184851976,6.7151,180.31,180.28,2.7754]
[1730184853587,3.94,180.31,180.27,5.96800959]
[1730184855285,3.94,180.31,180.3,2.7752]
[1730184856285,2.7748,180.33,180.3,2.7752]
[1730184856286,6.7148,180.33,180.3,2.7752]
[1730184857276,2.7748,180.33,180.3,2.7752]
[1730184858393,2.7749,180.32,180.29,2.7753]
[1730184858580,3.94,180.34,180.29,2.7753]
[1730184859591,2.7748,180.33,180.29,2.7753]
[1730184860083,3.94,180.34,180.29,2.7753]
[1730184860084,5.96800959,180.31,180.29,2.7753]
[1730184860289,5.96800959,180.33,180.23,3.94]
[1730184860486,2.7755,180.29,180.2,3.94]
[1730184860686,6.7155,180.29,180.24,5.96800959]
[1730184861281,2.7756,180.28,180.2,3.94]
[1730184861487,2.7756,180.28,180.24,5.96800959]
[1730184862282,2.7756,180.28,180.25,2.7759]
[1730184862485,12.68340959,180.29,180.25,2.7759]
[1730184863094,2.7755,180.28,180.25,2.7759]
[1730184864196,9.90800959,180.29,180.24,2.7761]
[1730184864695,8.74350959,180.28,180.24,2.7761]
[1730184865295,8.74350959,180.28,180.25,2.7759]
[1730184866995,5.96800959,180.28,180.25,2.7759]
[1730184867596,2.7751,180.31,180.25,5.96800959]
[1730184867798,3.94,180.3,180.25,5.96800959]
[1730184868488,5.96800959,180.31,180.27,2.7756]
[1730184868489,8.74310959,180.31,180.27,2.7756]
[1730184868689,3.94,180.3,180.27,2.7756]
[1730184871194,5.96800959,180.29,180.27,2.7756]
[1730184871396,5.96800959,180.29,180.25,2.7758]
[1730184871594,5.96800959,180.29,180.24,5.96800959]
[1730184875306,5.96800959,180.29,180.27,2.7756]
[1730184876406,3.94,180.3,180.27,2.7756]
[1730184883510,6.7152,180.3,180.27,2.7756]
[1730184883901,3.94,180.3,180.27,2.7756]
[1730184885303,3.94,180.3,180.28,2.7754]
[1730184885702,3.94,180.3,180.26,5.96800959]
[1730184885895,5.96800959,180.33,180.3,2.7751]
[1730184886104,3.94,180.32,180.3,2.7751]
[1730184889110,9.90800959,180.33,180.3,2.7751]
[1730184890018,9.90800959,180.33,180.31,2.775]
[1730184890417,3.94,180.33,180.32,2.7749]
[1730184891920,3.94,180.33,180.3,2.7752]
[1730184893119,9.90800959,180.33,180.3,2.7752]
[1730184893315,9.90800959,180.33,180.27,5.96800959]
[1730184893520,2.7749,180.32,180.29,2.7752]
[1730184896314,12.68280959,180.33,180.29,2.7752]
[1730184896714,12.54415275,180.37,180.29,5.96800959]
[1730184896915,3.94,180.36,180.29,5.96800959]
[1730184897118,5.96800959,180.35,180.29,5.96800959]
[1730184897514,8.74250959,180.35,180.31,2.775]
[1730184898217,3.94,180.34,180.31,2.775]
[1730184898418,3.94,180.33,180.31,2.775]
[1730184898814,3.94,180.33,180.29,5.96800959]
[1730184899015,6.7148,180.33,180.3,2.7751]
[1730184899723,6.7148,180.33,180.29,2.7752]
[1730184900728,2.7749,180.32,180.29,2.7752]
[1730184901119,8.74330959,180.3,180.16,84.8014247]
[1730184901322,5.96800959,180.3,180.24,5.96800959]
[1730184901523,5.96800959,180.32,180.26,5.96800959]
[1730184901716,7.9249,180.33,180.28,5.96800959]
[1730184902130,7.9249,180.33,180.29,2.7752]
[1730184902427,7.9249,180.33,180.28,5.96800959]
[1730184903021,7.9249,180.33,180.3,2.7752]
[1730184905824,7.9249,180.33,180.28,5.96800959]
[1730184905825,2.7746,180.34,180.31,2.7749]
[1730184906032,3.94,180.33,180.31,2.7749]
[1730184907726,12.54415275,180.37,180.3,5.96800959]
[1730184907923,9.90800959,180.36,180.3,5.96800959]
[1730184908524,12.68240959,180.36,180.32,2.7747]
[1730184909322,2.7744,180.35,180.32,2.7747]
[1730184909918,12.68240959,180.36,180.32,2.7747]
[1730184910320,3.94,180.36,180.26,1.2588]
[1730184910525,5.96800959,180.35,180.31,2.7749]
[1730184910724,5.96800959,180.35,180.3,5.96800959]
[1730184911435,9.90800959,180.36,180.32,2.7748]
[1730184911933,2.7744,180.35,180.32,2.7748]
[1730184919333,6.7144,180.35,180.32,2.7748]
[1730184921541,3.94,180.35,180.3,5.96800959]
[1730184921944,10.04396694,180.39,180.33,5.96800959]
[1730184922244,10.04396694,180.39,180.35,2.7744]
[1730184922245,6.7141,180.38,180.35,2.7744]
[1730184922440,16.01197653,180.39,180.35,5.96800959]
[1730184922441,10.04396694,180.39,180.35,5.96800959]
[1730184922638,2.7738,180.39,180.36,2.7742]
[1730184923142,3.94,180.4,180.35,5.96800959]
[1730184924137,3.94,180.4,180.31,3.94]
[1730184924337,3.94,180.4,180.37,2.774]
[1730184925337,9.90800959,180.4,180.36,2.7742]
[1730184925739,5.96800959,180.38,180.33,5.96800959]
[1730184925945,8.74200959,180.38,180.32,5.96800959]
[1730184926441,5.96800959,180.38,180.3,3.94]
[1730184926645,8.74220959,180.37,180.33,2.7746]
[1730184928745,8.74220959,180.37,180.34,2.7746]
[1730184930047,2.7742,180.37,180.34,2.7746]
[1730184930250,2.7739,180.39,180.36,2.7743]
[1730184931540,3.94,180.4,180.36,5.96800959]
[1730184931749,3.94,180.4,180.37,2.7741]
[1730184932948,11.26950959,180.41,180.37,2.7741]
[1730184933144,15.20950959,180.41,180.37,2.7741]
[1730184935753,12.68160959,180.41,180.37,2.7741]
[1730184936947,2.7732,180.43,180.4,2.7736]
[1730184937147,3.94,180.42,180.37,5.96800959]
[1730184937648,16.01197653,180.44,180.4,2.7735]
[1730184937849,19.95197653,180.44,180.4,2.7735]
[1730184938446,9.90800959,180.44,180.4,2.7735]
[1730184938651,2.7733,180.43,180.4,2.7735]
[1730184938853,8.74130959,180.43,180.4,2.7735]
[1730184940360,2.7733,180.43,180.4,2.7735]
[1730184944570,6.6929,180.45,180.42,2.7733]
[1730184944767,2.7729,180.45,180.42,2.7733]
[1730184948671,2.773,180.44,180.41,2.7734]
[1730184948870,9.88800959,180.46,180.4,5.96800959]
[1730184949772,2.773,180.45,180.42,2.7733]
[1730184951871,2.7731,180.44,180.41,2.7734]
[1730184952667,2.7729,180.45,180.41,2.7734]
[1730184953078,3.92,180.46,180.41,5.96800959]
[1730184953382,9.88800959,180.47,180.41,5.96800959]
[1730184954372,12.66060959,180.47,180.43,2.7731]
[1730184954889,6.6926,180.47,180.43,8.74110959]
[1730184956686,6.6926,180.47,180.44,2.773]
[1730184957083,2.7726,180.47,180.44,2.773]
[1730184957884,5.96800959,180.49,180.43,5.96800959]
[1730184958080,3.92,180.49,180.43,5.96800959]
[1730184959382,6.6923,180.49,180.46,2.7726]
[1730184961884,2.7723,180.49,180.46,2.7726]
[1730184962290,8.74030959,180.49,180.46,2.7726]
[1730184963091,2.7723,180.49,180.46,2.7726]
[1730184963577,5.96800959,180.5,180.46,2.7726]
[1730184963777,2.7724,180.48,180.46,2.7726]
[1730184964085,2.7724,180.48,180.43,5.96800959]
[1730184964288,2.7727,180.46,180.43,2.7731]
[1730184964887,2.7727,180.46,180.4,5.96800959]
[1730184964888,8.74060959,180.47,180.44,2.773]
[1730184965988,2.7727,180.46,180.43,2.7731]
[1730184966992,6.6925,180.48,180.44,2.7729]
[1730184967383,3.92,180.48,180.44,2.7729]
[1730184968278,2.7726,180.47,180.44,2.7729]
[1730184969791,9.88800959,180.48,180.41,5.96800959]
[1730184969990,2.7726,180.47,180.43,2.773]
[1730184970387,5.96800959,180.46,180.39,5.2296]
[1730184970582,3.92,180.48,180.41,2.7734]
[1730184970583,5.96800959,180.45,180.41,2.7734]
[1730184971095,8.74090959,180.45,180.41,2.7734]
[1730184971392,2.7729,180.45,180.41,2.7734]
[1730184971598,2.7729,180.45,180.4,5.96800959]
[1730184971788,2.7729,180.45,180.42,2.7733]
[1730184971990,8.74100959,180.44,180.37,82.44564362]
[1730184972188,8.74100959,180.44,180.4,2.7735]
[1730184972497,8.74100959,180.44,180.38,5.96800959]
[1730184972498,5.96800959,180.44,180.38,5.96800959]
[1730184973302,5.96800959,180.44,180.4,5.96800959]
[1730184973490,5.96800959,180.44,180.37,82.44564362]
[1730184973692,5.96800959,180.44,180.39,5.96800959]
[1730184974504,5.96800959,180.44,180.41,2.7734]
[1730184976601,2.7734,180.42,180.38,2.7739]
[1730184976904,5.96800959,180.43,180.37,5.96800959]
[1730184977290,8.74120959,180.43,180.39,2.7738]
[1730184979209,2.7733,180.42,180.37,2.7741]
[1730184979501,3.8756,180.47,180.33,3.8364]
[1730184979502,5.96800959,180.39,180.33,2.522]
[1730184979696,5.96800959,180.39,180.33,5.96800959]
[1730184979900,5.96800959,180.39,180.35,2.7743]
[1730184980098,5.96800959,180.39,180.33,5.96800959]
[1730184980301,3.92,180.41,180.35,5.96800959]
[1730184980606,3.92,180.41,180.39,2.7737]
[1730184986616,6.6932,180.43,180.39,2.7737]
[1730184987109,5.96800959,180.42,180.37,5.96800959]
[1730184987314,8.74140959,180.42,180.37,8.74200959]
[1730184987810,5.96800959,180.42,180.35,5.96800959]
[1730184988010,8.74160959,180.41,180.36,2.7742]
[1730184989021,8.74160959,180.41,180.35,5.96800959]
[1730184989224,8.74160959,180.41,180.37,2.7741]
[1730185000332,3.92,180.46,180.4,5.96800959]
[1730185000735,9.88800959,180.46,180.4,5.96800959]
[1730185002232,2.773,180.45,180.41,2.7734]
[1730185006439,9.88800959,180.46,180.4,5.96800959]
[1730185006642,12.66080959,180.46,180.42,2.7733]
[1730185009642,8.74080959,180.46,180.42,2.7733]
[1730185009839,6.6928,180.46,180.42,2.7733]
[1730185015647,12.66080959,180.46,180.42,2.7733]
[1730185022750,5.96800959,180.43,180.38,2.7738]
[1730185023051,5.96800959,180.41,180.36,5.96800959]
[1730185023254,5.96800959,180.41,180.38,2.7739]
[1730185025142,5.96800959,180.41,180.36,5.96800959]
[1730185025342,5.96800959,180.4,180.34,5.96800959]
[1730185025757,5.96800959,180.38,180.32,336.0]
[1730185025951,9.88800959,180.38,180.33,5.96800959]
[1730185026151,2.7741,180.37,180.33,8.74260959]
[1730185027855,2.7744,180.36,180.32,2.7748]
[1730185028057,5.96800959,180.37,180.31,5.96800959]
[1730185028456,2.7744,180.35,180.31,8.74290959]
[1730185029164,2.7743,180.36,180.32,2.7749]
[1730185035565,8.74220959,180.37,180.33,2.7747]
[1730185036160,2.7743,180.36,180.33,2.7747]
[1730185036462,2.7743,180.36,180.32,2.7748]
[1730185037371,5.96800959,180.37,180.31,5.96800959]
[1730185037567,8.74210959,180.37,180.33,2.7747]
[1730185037767,5.96800959,180.37,180.33,2.7747]
[1730185039369,2.7743,180.36,180.33,2.7747]
[1730185048783,5.96800959,180.35,180.33,2.7747]
[1730185049879,5.96800959,180.34,180.23,4.87864947]
[1730185050083,5.96800959,180.33,180.3,2.7751]
[1730185050270,9.88800959,180.33,180.3,2.7751]
[1730185050673,9.88800959,180.33,180.27,5.96800959]
[1730185051272,12.66270959,180.33,180.29,2.7752]
[1730185057782,12.66270959,180.33,180.27,5.96800959]
[1730185057783,9.88800959,180.33,180.27,5.96800959]
[1730185057980,9.88800959,180.33,180.31,2.775]
[1730185059492,3.92,180.33,180.31,2.775]
[1730185062290,3.7821,180.41,180.25,1.2239]
[1730185062495,5.96800959,180.36,180.33,2.7746]
[1730185062694,5.96800959,180.35,180.33,2.7746]
[1730185064500,8.74260959,180.35,180.31,2.7749]
[1730185064794,5.96800959,180.33,180.31,2.7749]
[1730185067303,2.7738,180.39,180.35,2.7743]
[1730185067497,2.7738,180.39,180.3,5.96800959]
[1730185067498,5.96800959,180.36,180.3,5.96800959]
[1730185067996,5.96800959,180.34,180.28,9.88800959]
[1730185068395,5.96800959,180.34,180.31,2.7749]
[1730185070599,5.96800959,180.34,180.29,2.7752]
[1730185070801,5.96800959,180.34,180.28,9.88800959]
[1730185071604,5.96800959,180.34,180.32,2.7749]
[1730185084820,3.92,180.35,180.3,5.96800959]
[1730185086415,3.92,180.35,180.26,3.92]
[1730185086416,3.92,180.35,180.34,2.7746]
[1730185086614,5.96800959,180.37,180.31,5.96800959]
[1730185087311,5.96800959,180.37,180.35,2.7743]
[1730185087517,5.96800959,180.37,180.31,5.96800959]
[1730185088315,5.96800959,180.37,180.34,2.7745]
[1730185088511,5.96800959,180.36,180.3,5.96800959]
[1730185088706,5.96800959,180.34,180.29,9.88800959]
[1730185088914,5.96800959,180.34,180.29,5.96800959]
[1730185089904,5.96800959,180.34,180.28,2.7754]
[1730185090104,5.96800959,180.34,180.28,5.96800959]
[1730185090511,2.7745,180.35,180.29,2.7753]
[1730185090711,5.96800959,180.34,180.29,2.7753]
[1730185094226,8.74260959,180.34,180.29,2.7753]
[1730185095127,8.74260959,180.34,180.29,8.74330959]
[1730185095928,2.7746,180.34,180.29,8.74330959]
[1730185097231,3.7821,180.41,180.29,5.96800959]
[1730185097428,8.74230959,180.36,180.31,2.7749]
[1730185097629,12.66230959,180.36,180.31,2.7749]
[1730185097830,9.88800959,180.36,180.31,2.7749]
[1730185098030,2.7744,180.35,180.31,2.7749]
[1730185101336,2.7746,180.34,180.31,2.7749]
[1730185104532,2.7746,180.34,180.3,8.74310959]
[1730185105535,8.74260959,180.34,180.3,2.7751]
[1730185105934,5.96800959,180.34,180.29,5.96800959]
[1730185106133,5.96800959,180.33,180.28,2.7755]
[1730185106826,2.775,180.32,180.28,2.7755]
[1730185108333,2.775,180.32,180.29,2.7753]
[1730185109331,2.775,180.32,180.28,2.7754]
[1730185110934,5.96800959,180.3,180.26,2.7758]
[1730185111139,5.96800959,180.3,180.25,5.96800959]
[1730185112233,2.7755,180.29,180.25,8.74390959]
[1730185113632,5.96800959,180.26,180.17,1.3079]
[1730185113833,5.96800959,180.24,180.18,10.86095768]
[1730185114033,5.96800959,180.24,180.19,4.89294809]
[1730185114327,2.7763,180.23,180.19,8.74480959]
[1730185114733,5.96800959,180.24,180.19,8.74480959]
[1730185114734,8.74420959,180.24,180.19,8.74480959]
[1730185115531,5.96800959,180.24,180.18,5.96800959]
[1730185115742,2.7764,180.23,180.18,8.74490959]
[1730185116236,2.7764,180.23,180.19,2.7769]
[1730185116446,2.7762,180.24,180.2,5.96800959]
[1730185116637,9.88800959,180.26,180.2,5.96800959]
[1730185116839,9.88800959,180.26,180.21,2.7765]
[1730185117751,59.94,180.33,180.22,2.7764]
[1730185117938,3.92,180.32,180.22,2.7764]
[1730185118143,5.96800959,180.27,180.22,2.7764]
[1730185118337,2.7758,180.26,180.22,2.7764]
[1730185119344,2.7757,180.27,180.23,8.74420959]
[1730185123143,59.94,180.33,180.23,5.96800959]
[1730185123350,59.94,180.33,180.25,2.7758]
[1730185123351,2.7752,180.3,180.25,2.7758]
[1730185123647,8.74320959,180.3,180.25,2.7758]
[1730185123849,12.66320959,180.3,180.25,2.7758]
[1730185127250,3.92,180.3,180.24,5.96800959]